fUSD/lending_fUSD_20251123
["ID","MTS","AMOUNT","RATE_DAILY","PERIOD"]
[394759833,1763929886409,-500.0,0.0004,8]
[394759834,1763929886418,-500.0,0.0004,8]
[394759835,1763929886427,-500.0,0.0004,8]
[394759836,1763929886437,-500.0,0.0004,8]
[394759837,1763929886446,-500.0,0.0004,8]
[394759838,1763929886456,-500.0,0.0004,8]
[394759839,1763929886466,-500.0,0.0004,2]
[394759840,1763929886475,-500.0,0.0004,8]
[394759841,1763929886484,-500.0,0.0004,8]
[394759842,1763929886495,-500.0,0.0004,8]
[394759843,1763929886504,-500.0,0.0004,8]
[394759844,1763929886515,-628.98,0.0004,8]
[394759845,1763929886525,-676.65,0.0004,8]
[394759846,1763929886535,-500.0,0.0004,8]
[394759847,1763929886545,-500.0,0.0004,8]
[394759848,1763929886554,-500.0,0.0004,8]
[394759849,1763929886563,-500.0,0.0004,8]
[394759850,1763929886573,-500.0,0.0004,8]
[394759851,1763929886582,-500.0,0.0004,8]
[394759852,1763929886594,-500.0,0.0004,8]
[394759853,1763929886603,-564.03,0.0004,8]
[394759854,1763929886612,-500.0,0.0004,8]
[394759855,1763929886622,-590.89,0.0004,8]
[394759856,1763929886632,-859.66,0.0004,8]
[394759857,1763929886642,-500.0,0.0004,8]
[394759858,1763929886652,-500.0,0.0004,8]
[394759859,1763929886662,-500.0,0.0004,8]
[394759860,1763929886675,-500.0,0.0004,8]
[394759861,1763929886687,-500.0,0.0004,8]
[394759862,1763929886697,-500.0,0.0004,8]
[394759863,1763929886706,-509.91,0.0004,8]
[394759864,1763929886717,-500.0,0.0004,8]
[394759865,1763929886726,-614.28,0.0004,8]
[394759866,1763929886736,-500.0,0.0004,8]
[394759867,1763929886746,-500.0,0.0004,8]
[394759868,1763929886755,-500.0,0.0004,8]
[394759869,1763929886765,-500.0,0.0004,8]
[394759870,1763929886776,-500.0,0.0004,8]
[394759871,1763929886787,-500.0,0.0004,8]
[394759872,1763929886796,-500.0,0.0004,8]
[394759873,1763929886806,-742.47,0.0004,8]
[394759874,1763929886816,-645.85,0.0004,8]
[394759875,1763929886826,-500.0,0.0004,8]
[394759876,1763929886836,-500.0,0.0004,8]
[394759877,1763929886846,-500.0,0.0004,8]
[394759878,1763929886856,-422.38696061,0.0004,8]
[394759879,1763929886866,-1700.95,0.0004,8]
[394759880,1763929886875,-500.0,0.0004,8]
[394759881,1763929886885,-500.0,0.0004,8]
[394759882,1763929886894,-500.0,0.0004,8]
[394759883,1763929886904,-500.0,0.0004,8]
[394759884,1763929886914,-500.0,0.0004,8]
[394759885,1763929886924,-550.41,0.0004,8]
[394759886,1763929886935,-276.38967693,0.0004,8]
[394759887,1763929886946,-780.84,0.0004,8]
[394759888,1763929886956,-500.0,0.0004,8]
[394759889,1763929886966,-801.52,0.0004,8]
[394759890,1763929886975,-876.45,0.0004,8]
[394759891,1763929886985,-500.0,0.0004,8]
[394759892,1763929886995,-1111.77,0.0004,8]
[394759893,1763929887005,-500.0,0.0004,8]
[394759894,1763929887015,-562.07,0.0004,8]
[394759895,1763929887025,-580.02,0.0004,8]
[394759896,1763929887035,-1037.3,0.0004,8]
[394759897,1763929887044,-500.0,0.0004,8]
[394759898,1763929887055,-500.0,0.0004,8]
[394759899,1763929887064,-507.54,0.0004,8]
[394759900,1763929887073,-500.0,0.0004,8]
[394759901,1763929887083,-500.0,0.0004,8]
[394759902,1763929887093,-655.94,0.0004,8]
[394759903,1763929887103,-500.0,0.0004,8]
[394759904,1763929887112,-515.32,0.0004,8]
[394759905,1763929887122,-500.0,0.0004,8]
[394759906,1763929887131,-500.0,0.0004,8]
[394759907,1763929887141,-500.0,0.0004,8]
[394759908,1763929887150,-500.0,0.0004,8]
[394759909,1763929887159,-500.0,0.0004,8]
[394759910,1763929887168,-500.0,0.0004,8]
[394759911,1763929887178,-500.0,0.0004,8]
[394759912,1763929887188,-724.73,0.0004,8]
[394759913,1763929887197,-500.0,0.0004,8]
[394759914,1763929887207,-699.98,0.0004,8]
[394759915,1763929887216,-500.0,0.0004,8]
[394759916,1763929887226,-500.0,0.0004,8]
[394759917,1763929887235,-500.0,0.0004,8]
[394759918,1763929887244,-500.0,0.0004,8]
[394759919,1763929887254,-704.21,0.0004,8]
[394759920,1763929887264,-1719.41,0.0004,8]
[394759921,1763929887273,-500.0,0.0004,8]
[394759922,1763929887283,-500.0,0.0004,8]
[394759923,1763929887292,-500.0,0.0004,8]
[394759924,1763929887301,-500.0,0.0004,8]
[394759925,1763929887311,-500.0,0.0004,8]
[394759926,1763929887320,-867.18,0.0004,8]
[394759927,1763929887330,-742.38,0.0004,8]
[394759928,1763929887339,-500.0,0.0004,8]
[394759929,1763929887348,-500.0,0.0004,8]
[394759930,1763929887358,-519.83,0.0004,8]
[394759931,1763929887367,-500.0,0.0004,8]
[394759932,1763929887377,-500.0,0.0004,8]
[394759933,1763929887387,-500.0,0.0004,8]
[394759934,1763929887396,-500.0,0.0004,8]
[394759935,1763929887406,-500.0,0.0004,8]
[394759936,1763929887416,-500.0,0.0004,8]
[394759937,1763929887425,-500.0,0.0004,8]
[394759938,1763929887435,-538.0,0.0004,8]
[394759939,1763929887444,-500.0,0.0004,8]
[394759940,1763929887454,-500.0,0.0004,8]
[394759941,1763929887464,-500.0,0.0004,8]
[394759942,1763929887474,-477.49959461,0.0004,8]
[394759943,1763929887484,-764.19,0.0004,8]
[394759944,1763929887494,-500.0,0.0004,8]
[394759945,1763929887503,-500.0,0.0004,8]
[394759946,1763929887513,-500.0,0.0004,8]
[394759947,1763929887523,-500.0,0.0004,8]
[394759948,1763929887533,-500.0,0.0004,8]
[394759949,1763929887543,-500.0,0.0004,8]
[394759950,1763929887553,-500.0,0.0004,8]
[394759951,1763929887562,-771.84,0.0004,8]
[394759952,1763929887571,-500.0,0.0004,8]
[394759953,1763929887581,-500.0,0.0004,8]
[394759954,1763929887591,-500.0,0.0004,8]
[394759955,1763929887601,-500.0,0.0004,8]
[394759956,1763929887611,-830.13,0.0004,8]
[394759957,1763929887621,-500.0,0.0004,8]
[394759958,1763929887634,-1259.23,0.0004,8]
[394759959,1763929887643,-545.01,0.0004,8]
[394759960,1763929887653,-500.0,0.0004,8]
[394759961,1763929887663,-500.0,0.0004,8]
[394759962,1763929887675,-513.17,0.0004,8]
[394759963,1763929887684,-500.0,0.0004,8]
[394759964,1763929887694,-500.0,0.0004,8]
[394759965,1763929887705,-535.18,0.0004,8]
[394759966,1763929887715,-500.0,0.0004,8]
[394759967,1763929887724,-500.0,0.0004,8]
[394759968,1763929887734,-500.0,0.0004,8]
[394759969,1763929887744,-1009.17783038,0.0004,30]
[394759970,1763929887754,-500.0,0.0004,8]
[394759971,1763929887764,-830.78,0.0004,8]
[394759972,1763929887774,-6293.43,0.0004,8]
[394759973,1763929887784,-339.69429817,0.0004,8]
[394759974,1763929887794,-500.0,0.0004,8]
[394759975,1763929887803,-500.0,0.0004,8]
[394759976,1763929887813,-591.35,0.0004,8]
[394759977,1763929887823,-500.0,0.0004,8]
[394759978,1763929888060,-295.49809284,0.0004,8]
[394759979,1763929888070,-500.0,0.0004,8]
[394759980,1763929888080,-1192.17,0.0004,8]
[394759981,1763929888090,-500.0,0.0004,8]
[394759982,1763929888100,-500.0,0.0004,8]
[394759983,1763929888110,-500.0,0.0004,8]
[394759984,1763929888119,-500.0,0.0004,8]
[394759985,1763929888128,-500.0,0.0004,8]
[394759986,1763929888137,-500.0,0.0004,8]
[394759987,1763929888146,-500.0,0.0004,8]
[394759988,1763929888155,-896.91,0.0004,8]
[394759989,1763929888164,-694.55,0.0004,8]
[394759990,1763929888174,-500.0,0.0004,8]
[394759991,1763929888183,-500.0,0.0004,8]
[394759992,1763929888192,-500.0,0.0004,2]
[394759993,1763929888202,-500.0,0.0004,8]
[394759994,1763929888212,-715.66,0.0004,8]
[394759995,1763929888221,-500.0,0.0004,8]
[394759996,1763929888231,-1000.0,0.0004,8]
[394759997,1763929888240,-1953.68,0.0004,8]
[394759998,1763929888249,-698.87,0.0004,8]
[394759999,1763929888259,-592.61,0.0004,8]
[394760000,1763929888268,-587.71,0.0004,8]
[394760001,1763929888277,-500.0,0.0004,8]
[394760002,1763929888287,-500.0,0.0004,8]
[394760003,1763929888297,-500.0,0.0004,8]
[394760004,1763929888307,-500.0,0.0004,8]
[394760005,1763929888317,-500.0,0.0004,8]
[394760006,1763929888326,-500.0,0.0004,8]
[394760007,1763929888336,-1649.1,0.0004,8]
[394760008,1763929888345,-500.0,0.0004,8]
[394760009,1763929888355,-500.0,0.0004,8]
[394760010,1763929888364,-589.17,0.0004,8]
[394760011,1763929888374,-500.0,0.0004,8]
[394760012,1763929888384,-951.49,0.0004,8]
[394760013,1763929888394,-503.68,0.0004,8]
[394760014,1763929888405,-500.0,0.0004,8]
[394760015,1763929888414,-500.0,0.0004,8]
[394760016,1763929888424,-500.0,0.0004,8]
[394760017,1763929888432,-500.0,0.0004,8]
[394760018,1763929888443,-500.0,0.0004,8]
[394760019,1763929888452,-500.0,0.0004,8]
[394760020,1763929888462,-300.73832316,0.0004,8]
[394760021,1763929888474,-525.49,0.0004,8]
[394760022,1763929888483,-500.0,0.0004,8]
[394760023,1763929888493,-500.0,0.0004,8]
[394760024,1763929888502,-524.73,0.0004,8]
[394760025,1763929888511,-500.0,0.0004,8]
[394760026,1763929888520,-575.69,0.0004,8]
[394760027,1763929888530,-500.0,0.0004,8]
[394760028,1763929888539,-310.69455317,0.0004,8]
[394760029,1763929888549,-500.0,0.0004,8]
[394760030,1763929888559,-500.0,0.0004,8]
[394760031,1763929888572,-500.0,0.0004,8]
[394760032,1763929888581,-500.0,0.0004,8]
[394760033,1763929888591,-500.0,0.0004,8]
[394760034,1763929888600,-500.0,0.0004,8]
[394760035,1763929888610,-500.0,0.0004,8]
[394760036,1763929888619,-919.24,0.0004,8]
[394760037,1763929888632,-829.73,0.0004,8]
[394760038,1763929888641,-867.96,0.0004,8]
[394760039,1763929888651,-500.0,0.0004,8]
[394760040,1763929888660,-759.86,0.0004,8]
[394760041,1763929888670,-626.85,0.0004,8]
[394760042,1763929888681,-392.42851608,0.00040019,2]
[394760043,1763929888691,-479.01,0.00040055,2]
[394760044,1763929888703,-1175.1,0.00040055,2]
[394760045,1763929888717,-300.23154,0.0004008,98]
[394760046,1763929888727,-2171.72725798,0.00040082,120]
[394760047,1763929888736,-1056.45640493,0.00040082,120]
[394760048,1763929888745,-1358.71607308,0.00040082,120]
[394760049,1763929888754,-479.01988493,0.000401,2]
[394760050,1763929888763,-1000.0,0.00040107,7]
[394760051,1763929888773,-500.0,0.00040136,2]
[394760052,1763929888782,-500.0,0.00040136,2]
[394760053,1763929888791,-418.0,0.00040136,2]
[394760054,1763929888800,-166.66,0.00040163,2]
[394760055,1763929888809,-1000.0,0.00040164,20]
[394760056,1763929888819,-150.0,0.00040164,2]
[394760057,1763929888829,-150.0,0.00040164,2]
[394760058,1763929888838,-150.0,0.00040164,2]
[394760059,1763929888847,-150.0,0.00040164,2]
[394760060,1763929888858,-2154.59148229,0.0004018,90]
[394760061,1763929888867,-1411.43192787,0.0004019,120]
[394760062,1763929888877,-150.0,0.00040192,2]
[394760063,1763929888887,-417.4,0.00040192,2]
[394760064,1763929888896,-551.04,0.00040192,2]
[394760065,1763929888905,-227.07,0.00040192,2]
[394760066,1763929888915,-150.0,0.00040192,2]
[394760067,1763929888924,-355.08,0.00040192,2]
[394760068,1763929888934,-169.71,0.00040192,2]
[394760069,1763929888943,-311.13,0.00040192,2]
[394760070,1763929888952,-1211.3,0.00040192,2]
[394760071,1763929888961,-150.0,0.00040193,2]
[394760072,1763929888971,-3049.26362323,0.00040263,2]
[394760073,1763929888980,-554.33256874,0.00040263,2]
[394760074,1763929888989,-1576.491737,0.00040263,2]
[394760075,1763929888999,-789.99688143,0.00040263,8]
[394760076,1763929889008,-551.04,0.00040266,2]
[394760077,1763929889018,-1101.83,0.00040266,2]
[394760078,1763929889027,-550.01,0.00040266,2]
[394760079,1763929889038,-350.0,0.00040268,5]
[394760080,1763929889048,-655.29815995,0.00040273,31]
[394760081,1763929889058,-500.0,0.00040273,2]
[394760082,1763929889067,-500.0,0.00040273,2]
[394760083,1763929889077,-418.0,0.00040273,2]
[394760084,1763929889086,-537.05,0.00040273,8]
[394760085,1763929889096,-634.65949738,0.00040273,8]
[394760086,1763929889105,-700.0,0.00040273,120]
[394760087,1763929889115,-500.0,0.00040273,8]
[394760088,1763929889124,-500.0,0.00040273,8]
[394760089,1763929889135,-500.0,0.00040273,8]
[394760090,1763929889145,-500.0,0.00040273,8]
[394760091,1763929889155,-500.0,0.00040273,8]
[394760092,1763929889165,-500.0,0.00040273,8]
[394760093,1763929889174,-500.0,0.00040273,8]
[394760094,1763929889184,-500.0,0.00040273,8]
[394760095,1763929889193,-500.0,0.00040273,8]
[394760096,1763929889203,-764.13,0.00040273,8]
[394760097,1763929889213,-500.0,0.00040273,8]
[394760098,1763929889222,-500.0,0.00040273,8]
[394760099,1763929889231,-500.0,0.00040273,8]
[394760100,1763929889242,-500.0,0.00040273,8]
[394760101,1763929889251,-500.0,0.00040273,8]
[394760102,1763929889262,-500.0,0.00040273,8]
[394760103,1763929889271,-500.0,0.00040273,8]
[394760104,1763929889282,-500.0,0.00040273,8]
[394760105,1763929889291,-211.58315829,0.00040273,8]
[394760106,1763929889300,-500.0,0.00040273,8]
[394760107,1763929889309,-500.0,0.00040273,8]
[394760108,1763929889319,-500.0,0.00040273,8]
[394760109,1763929889329,-500.0,0.00040273,8]
[394760110,1763929889339,-547.16713594,0.00040273,8]
[394760111,1763929889348,-500.0,0.00040273,8]
[394760112,1763929889357,-502.57,0.00040273,8]
[394760113,1763929889367,-734.1,0.00040273,8]
[394760114,1763929889376,-500.0,0.00040273,8]
[394760115,1763929889388,-500.0,0.00040273,8]
[394760116,1763929889398,-500.0,0.00040273,8]
[394760117,1763929889409,-500.0,0.00040273,8]
[394760118,1763929889419,-655.26,0.00040273,8]
[394760119,1763929889430,-532.47,0.00040273,8]
[394760120,1763929889441,-500.0,0.00040273,8]
[394760121,1763929889450,-500.0,0.00040273,8]
[394760122,1763929889460,-500.0,0.00040273,8]
[394760123,1763929889469,-500.0,0.00040273,8]
[394760124,1763929889479,-500.0,0.00040273,8]
[394760125,1763929889490,-500.0,0.00040273,8]
[394760126,1763929889500,-500.0,0.00040273,8]
[394760127,1763929889511,-500.0,0.00040273,8]
[394760128,1763929889520,-518.25,0.00040273,8]
[394760129,1763929889531,-500.0,0.00040273,8]
[394760130,1763929889541,-1000.0,0.00040273,8]
[394760131,1763929889550,-1022.99,0.00040273,8]
[394760132,1763929889559,-500.0,0.00040273,8]
[394760133,1763929889568,-903.62,0.00040273,8]
[394760134,1763929889577,-500.0,0.00040273,8]
[394760135,1763929889586,-500.0,0.00040273,8]
[394760136,1763929889595,-500.0,0.00040273,8]
[394760137,1763929889604,-500.0,0.00040273,8]
[394760138,1763929889614,-500.0,0.00040273,8]
[394760139,1763929889625,-506.26,0.00040273,8]
[394760140,1763929889639,-560.5,0.00040273,8]
[394760141,1763929889649,-580.95,0.00040273,8]
[394760142,1763929889660,-500.0,0.00040273,8]
[394760143,1763929889671,-500.0,0.00040273,8]
[394760144,1763929889680,-500.0,0.00040273,8]
[394760145,1763929889690,-500.0,0.00040273,8]
[394760146,1763929889701,-516.8,0.00040273,8]
[394760147,1763929889714,-500.0,0.00040273,8]
[394760148,1763929889725,-500.0,0.00040273,8]
[394760149,1763929889735,-500.0,0.00040273,8]
[394760150,1763929889746,-291.99350136,0.00040273,8]
[394760151,1763929889755,-500.0,0.00040273,8]
[394760152,1763929889764,-500.0,0.00040273,8]
[394760153,1763929889775,-500.0,0.00040273,8]
[394760154,1763929889786,-500.0,0.00040273,8]
[394760155,1763929889795,-500.0,0.00040273,8]
[394760156,1763929889805,-500.0,0.00040273,8]
[394760157,1763929889815,-529.7,0.00040273,8]
[394760158,1763929889824,-525.99,0.00040273,8]
[394760159,1763929889833,-500.0,0.00040273,8]
[394760160,1763929889843,-592.88,0.00040273,8]
[394760161,1763929889852,-539.32,0.00040273,8]
[394760162,1763929889861,-809.29,0.00040273,8]
[394760163,1763929889871,-409.05687583,0.00040273,8]
[394760164,1763929889880,-500.0,0.00040273,8]
[394760165,1763929889889,-568.18,0.00040273,8]
[394760166,1763929889899,-500.0,0.00040273,8]
[394760167,1763929889908,-500.0,0.00040273,8]
[394760168,1763929889918,-501.27,0.00040273,8]
[394760169,1763929889927,-500.0,0.00040273,8]
[394760170,1763929889936,-500.0,0.00040273,8]
[394760171,1763929889945,-500.0,0.00040273,8]
[394760172,1763929889955,-500.0,0.00040273,8]
[394760173,1763929889965,-500.0,0.00040273,8]
[394760174,1763929889974,-500.0,0.00040273,8]
[394760175,1763929889983,-527.57611015,0.00040273,8]
[394760176,1763929889993,-500.0,0.00040273,8]
[394760177,1763929890003,-549.96,0.00040273,8]
[394760178,1763929890012,-500.0,0.00040273,8]
[394760179,1763929890021,-500.0,0.00040273,8]
[394760180,1763929890031,-500.0,0.00040273,8]
[394760181,1763929890040,-500.0,0.00040273,8]
[394760182,1763929890049,-500.0,0.00040273,8]
[394760183,1763929890059,-500.0,0.00040273,8]
[394760184,1763929890067,-639.91,0.00040273,8]
[394760185,1763929890077,-584.27,0.00040273,8]
[394760186,1763929890088,-702.21,0.00040273,8]
[394760187,1763929890098,-500.0,0.00040273,8]
[394760188,1763929890107,-500.0,0.00040273,8]
[394760189,1763929890118,-500.0,0.00040273,8]
[394760190,1763929890128,-500.0,0.00040273,8]
[394760191,1763929890138,-500.0,0.00040273,8]
[394760192,1763929890147,-500.0,0.00040273,8]
[394760193,1763929890157,-673.92,0.00040273,8]
[394760194,1763929890166,-500.0,0.00040273,8]
[394760195,1763929890176,-500.0,0.00040273,8]
[394760196,1763929890185,-500.0,0.00040273,8]
[394760197,1763929890194,-518.40016931,0.00040273,8]
[394760198,1763929890204,-500.0,0.00040273,8]
[394760199,1763929890213,-709.69,0.00040273,8]
[394760200,1763929890223,-500.0,0.00040273,8]
[394760201,1763929890232,-500.0,0.00040273,8]
[394760202,1763929890242,-793.62,0.00040273,8]
[394760203,1763929890253,-500.0,0.00040273,8]
[394760204,1763929890263,-500.0,0.00040273,8]
[394760205,1763929890272,-500.0,0.00040273,8]
[394760206,1763929890283,-500.0,0.00040273,8]
[394760207,1763929890292,-500.0,0.00040273,8]
[394760208,1763929890302,-500.0,0.00040273,8]
[394760209,1763929890313,-500.0,0.00040273,8]
[394760210,1763929890323,-500.0,0.00040273,8]
[394760211,1763929890334,-500.0,0.00040273,8]
[394760212,1763929890343,-500.0,0.00040273,8]
[394760213,1763929890353,-661.66,0.00040273,8]
[394760214,1763929890363,-500.0,0.00040273,8]
[394760215,1763929890372,-500.0,0.00040273,8]
[394760216,1763929890382,-553.0,0.00040273,8]
[394760217,1763929890390,-790.75,0.00040273,8]
[394760218,1763929890463,-547.05572194,0.00040273,8]
[394760219,1763929890472,-500.0,0.00040273,8]
[394760220,1763929890482,-500.0,0.00040273,8]
[394760221,1763929890491,-500.0,0.00040273,8]
[394760222,1763929890501,-636.72,0.00040273,8]
[394760223,1763929890509,-500.0,0.00040273,8]
[394760224,1763929890519,-576.8,0.00040273,8]
[394760225,1763929890529,-549.64,0.00040273,8]
[394760226,1763929890538,-1124.75,0.00040273,8]
[394760227,1763929890548,-500.0,0.00040273,8]
[394760228,1763929890558,-500.0,0.00040273,8]
[394760229,1763929890567,-500.0,0.00040273,8]
[394760230,1763929890577,-576.65,0.00040273,8]
[394760231,1763929890587,-500.0,0.00040273,8]
[394760232,1763929890596,-505.96,0.00040273,8]
[394760233,1763929890605,-505.6,0.00040273,8]
[394760234,1763929890614,-500.0,0.00040273,8]
[394760235,1763929890622,-500.0,0.00040273,8]
[394760236,1763929890633,-500.0,0.00040273,8]
[394760237,1763929890643,-195.01282387,0.00040273,8]
[394760238,1763929890652,-622.8,0.00040273,8]
[394760239,1763929890662,-500.0,0.00040273,8]
[394760240,1763929890671,-500.0,0.00040273,8]
[394760241,1763929890681,-847.47,0.00040273,8]
[394760242,1763929890690,-596.94,0.00040273,8]
[394760243,1763929890699,-500.0,0.00040273,8]
[394760244,1763929890709,-500.0,0.00040273,8]
[394760245,1763929890718,-500.0,0.00040273,8]
[394760246,1763929890727,-500.0,0.00040273,8]
[394760247,1763929890737,-500.0,0.00040273,8]
[394760248,1763929890746,-500.0,0.00040273,8]
[394760249,1763929890755,-500.0,0.00040273,8]
[394760250,1763929890764,-500.0,0.00040273,8]
[394760251,1763929890773,-500.0,0.00040273,8]
[394760252,1763929890783,-500.0,0.00040273,8]
[394760253,1763929890793,-500.0,0.00040273,8]
[394760254,1763929890803,-500.0,0.00040273,8]
[394760255,1763929890812,-500.0,0.00040273,8]
[394760256,1763929890821,-500.0,0.00040273,8]
[394760257,1763929890830,-500.0,0.00040273,2]
[394760258,1763929890839,-505.22331243,0.00040273,8]
[394760259,1763929890849,-500.0,0.00040273,8]
[394760260,1763929890858,-299.77049353,0.00040273,8]
[394760261,1763929890867,-500.0,0.00040273,8]
[394760262,1763929890877,-628.98,0.00040273,8]
[394760263,1763929890886,-676.65,0.00040273,8]
[394760264,1763929890896,-500.0,0.00040273,8]
[394760265,1763929890905,-500.0,0.00040273,8]
[394760266,1763929890914,-500.0,0.00040273,8]
[394760267,1763929890924,-500.0,0.00040273,8]
[394760268,1763929890933,-500.0,0.00040273,8]
[394760269,1763929890942,-231.51735671,0.00040273,8]
[394760270,1763929890973,-268.48264329,0.00040273,8]
[394760271,1763929890983,-500.0,0.00040273,8]
[394760272,1763929890992,-564.03,0.00040273,8]
[394760273,1763929891001,-500.0,0.00040273,8]
[394760274,1763929891010,-590.89,0.00040273,8]
[394760275,1763929891019,-859.66,0.00040273,8]
[394760276,1763929891028,-500.0,0.00040273,8]
[394760277,1763929891037,-500.0,0.00040273,8]
[394760278,1763929891046,-500.0,0.00040273,8]
[394760279,1763929891055,-216.93735671,0.00040273,8]
[394760280,1763929891066,-283.06264329,0.00040273,8]
[394760281,1763929891077,-500.0,0.00040273,8]
[394760282,1763929891086,-500.0,0.00040273,8]
[394760283,1763929891095,-509.91,0.00040273,8]
[394760284,1763929891104,-500.0,0.00040273,8]
[394760285,1763929891114,-614.28,0.00040273,8]
[394760286,1763929891123,-500.0,0.00040273,8]
[394760287,1763929891133,-500.0,0.00040273,8]
[394760288,1763929891144,-500.0,0.00040273,8]
[394760289,1763929891153,-309.8669392,0.00040273,8]
[394760290,1763929891163,-500.0,0.00040273,8]
[394760291,1763929891172,-500.0,0.00040273,8]
[394760292,1763929891182,-500.0,0.00040273,8]
[394760293,1763929891191,-742.47,0.00040273,8]
[394760294,1763929891199,-645.85,0.00040273,8]
[394760295,1763929891209,-500.0,0.00040273,8]
[394760296,1763929891217,-500.0,0.00040273,8]
[394760297,1763929891226,-500.0,0.00040273,8]
[394760298,1763929891235,-1700.95,0.00040273,8]
[394760299,1763929891244,-500.0,0.00040273,8]
[394760300,1763929891253,-500.0,0.00040273,8]
[394760301,1763929891262,-500.0,0.00040273,8]
[394760302,1763929891271,-500.0,0.00040273,8]
[394760303,1763929891280,-500.0,0.00040273,8]
[394760304,1763929891290,-550.41,0.00040273,8]
[394760305,1763929891298,-780.84,0.00040273,8]
[394760306,1763929891307,-500.0,0.00040273,8]
[394760307,1763929891316,-801.52,0.00040273,8]
[394760308,1763929891325,-876.45,0.00040273,8]
[394760309,1763929891333,-500.0,0.00040273,8]
[394760310,1763929891343,-875.86179656,0.00040273,8]
[394760311,1763929891354,-235.90820344,0.00040273,8]
[394760312,1763929891363,-216.55147905,0.00040273,8]
[394760313,1763929891373,-283.44852095,0.00040273,8]
[394760314,1763929891381,-560.68893612,0.00040273,8]
[394760315,1763929891392,-1.38106388,0.00040273,8]
[394760316,1763929891401,-580.02,0.00040273,8]
[394760317,1763929891409,-773.17532612,0.00040273,8]
[394760318,1763929891419,-264.12467388,0.00040273,8]
[394760319,1763929891428,-500.0,0.00040273,8]
[394760320,1763929891437,-278.27375568,0.00040273,8]
[394760321,1763929891448,-221.72624432,0.00040273,8]
[394760322,1763929891457,-223.47875568,0.00040273,8]
[394760323,1763929935656,500.0,0.00017,30]
[394760325,1763930239206,543.71168959,0.00017,30]
[394760326,1763930535329,500.0,0.00017,30]
[394760327,1763930548718,500.0,0.00017,30]
[394760335,1763930834921,500.0,0.00017,30]
[394760358,1763931031497,-1080.06190617,0.00017249,2]
[394760359,1763931031506,-250.0,0.00017311,2]
[394760360,1763931031515,-195.0,0.00017374,2]
[394760361,1763931031524,-195.0,0.00017499,2]
[394760362,1763931031533,-167.76,0.00017749,2]